fUSD/lending_fUSD_20260121
["ID","MTS","AMOUNT","RATE_DAILY","PERIOD"]
[402949528,1769010649675,-500.0,0.00018268,2]
[402949529,1769010649685,-275.5219394,0.00018268,2]
[402949530,1769010649695,-1500.0,0.00018268,2]
[402949531,1769010649705,-500.71668526,0.00018268,2]
[402949532,1769010649714,-1500.0,0.00018268,2]
[402949533,1769010649724,-1500.0,0.00018268,2]
[402949534,1769010649733,-1500.0,0.00018268,2]
[402949535,1769010649743,-1500.0,0.00018268,2]
[402949536,1769010649752,-1305.82815613,0.00018268,2]
[402949537,1769010649761,-500.0,0.00018274,2]
[402949538,1769010649771,-2174.0,0.00018277,2]
[402949539,1769010649780,-521.32,0.00018306,2]
[402949540,1769010649789,-1510.0,0.00018355,2]
[402949541,1769010649799,-1500.0,0.00018368,2]
[402949542,1769010649808,-481.89121141,0.00018368,2]
[402949543,1769010649818,-1510.0,0.00018372,2]
[402949544,1769010649827,-2174.0,0.00018373,2]
[402949545,1769010649836,-2174.0,0.00018396,2]
[402949546,1769010649845,-1510.0,0.00018425,2]
[402949547,1769010649854,-783.609,0.00018427,2]
[402949548,1769010649863,-209.43,0.0001843,2]
[402949549,1769010649872,-994.41,0.00018465,2]
[402949550,1769010649881,-10018.25942168,0.00018511,2]
[402949551,1769010649891,-1510.0,0.0001852,2]
[402949552,1769010649901,-166.66,0.00018548,2]
[402949553,1769010649911,-369.73877733,0.00018629,6]
[402949554,1769010649921,-1510.0,0.00018636,2]
[402949555,1769010649935,-2174.0,0.00018638,2]
[402949556,1769010649944,-1510.0,0.00018673,2]
[402949557,1769010649954,-158.65816027,0.00018693,2]
[402949558,1769010649963,-994.41,0.00018739,2]
[402949559,1769010649974,-201.93286099,0.00018764,2]
[402949560,1769010649985,-181.08010149,0.00018764,2]
[402949561,1769010649995,-553.64373807,0.00018764,2]
[402949562,1769010650006,-411.76724665,0.00018764,2]
[402949563,1769010650015,-151.0,0.00018764,2]
[402949564,1769010650024,-1022.51,0.00018793,2]
[402949565,1769010650034,-151.28,0.000188,2]
[402949566,1769010650043,-858.08598744,0.00018816,2]
[402949567,1769010650052,-2000.0,0.00018816,2]
[402949568,1769010650062,-2000.0,0.00018816,2]
[402949569,1769010650071,-2000.0,0.00018816,2]
[402949570,1769010650080,-2000.0,0.00018816,2]
[402949571,1769010650090,-1001.96234831,0.00018816,2]
[402949572,1769010650099,-2000.0,0.00018816,2]
[402949573,1769010650110,-2000.0,0.00018816,2]
[402949574,1769010650120,-1510.0,0.00018854,2]
[402949575,1769010650129,-1510.0,0.00018881,2]
[402949576,1769010650139,-2000.0,0.00018916,2]
[402949577,1769010650148,-1510.0,0.00018918,2]
[402949578,1769010650156,-1510.0,0.00018935,2]
[402949579,1769010650167,-2174.0,0.00018947,2]
[402949580,1769010650176,-300.0,0.00019,2]
[402949581,1769010650185,-392.41494739,0.00019,2]
[402949582,1769010650194,-2174.0,0.00019009,2]
[402949583,1769010650203,-994.41,0.00019013,2]
[402949584,1769010650212,-2174.0,0.00019027,2]
[402949585,1769010650221,-1510.0,0.00019032,2]
[402949586,1769010650230,-1510.0,0.00019044,2]
[402949587,1769010650238,-151.0,0.00019177,2]
[402949588,1769010650247,-500.0,0.00019178,2]
[402949589,1769010650256,-500.0,0.00019178,2]
[402949590,1769010650265,-429.87943736,0.00019178,2]
[402949591,1769010650274,-500.0,0.00019178,2]
[402949592,1769010650283,-500.0,0.00019178,2]
[402949593,1769010650292,-500.0,0.00019178,2]
[402949594,1769010650301,-500.0,0.00019178,2]
[402949595,1769010650528,-500.0,0.00019178,2]
[402949596,1769010650538,-600.0,0.00019178,2]
[402949597,1769010650548,-253.4,0.00019178,30]
[402949598,1769010650558,-160.65464619,0.00019178,2]
[402949599,1769010650568,-150.0,0.00019178,2]
[402949600,1769010650577,-200.0,0.000192,2]
[402949601,1769010650586,-587.0,0.00019219,2]
[402949602,1769010650596,-994.44,0.00019287,2]
[402949603,1769010650605,-209.43,0.00019308,2]
[402949604,1769010650614,-209.40437684,0.00019312,2]
[402949605,1769010650624,-187.78006525,0.00019312,2]
[402949606,1769010650633,-574.12855637,0.00019312,2]
[402949607,1769010650642,-151.0,0.00019312,2]
[402949608,1769010650653,-1526.73,0.00019362,2]
[402949609,1769010650662,-2500.0,0.00019364,2]
[402949610,1769010650672,-302.34277429,0.00019364,2]
[402949611,1769010650682,-1438.72320823,0.00019364,2]
[402949612,1769010650692,-2468.87119841,0.00019364,2]
[402949613,1769010650702,-1183.49595019,0.00019364,2]
[402949614,1769010650712,-2500.0,0.00019364,2]
[402949615,1769010650721,-300.0,0.00019384,2]
[402949616,1769010650731,-300.0,0.00019384,2]
[402949617,1769010650740,-1332.0,0.00019385,2]
[402949618,1769010650749,-615.0,0.00019385,2]
[402949619,1769010650759,-1407.0,0.00019385,2]
[402949620,1769010650769,-2835.918,0.00019385,2]
[402949621,1769010650778,-1268.0,0.00019385,2]
[402949622,1769010650788,-566.0,0.00019385,2]
[402949623,1769010650798,-6564.0,0.00019385,2]
[402949624,1769010650807,-4827.0,0.00019385,2]
[402949625,1769010650817,-220.21537597,0.00019386,2]
[402949626,1769010650827,-1000.0,0.00019397,2]
[402949627,1769010650837,-151.0,0.000194,2]
[402949628,1769010650846,-152.0,0.000194,2]
[402949629,1769010650856,-152.0,0.000194,2]
[402949630,1769010650865,-152.0,0.000194,2]
[402949631,1769010650874,-152.0,0.000194,2]
[402949632,1769010650884,-151.0,0.000194,2]
[402949633,1769010650893,-151.0,0.000194,2]
[402949634,1769010650902,-151.0,0.000194,2]
[402949635,1769010650913,-151.0,0.000194,2]
[402949636,1769010650922,-151.0,0.000194,2]
[402949637,1769010650936,-151.0,0.000194,2]
[402949638,1769010650945,-151.0,0.000194,2]
[402949639,1769010650954,-151.0,0.000194,2]
[402949640,1769010650964,-192.28780433,0.000194,2]
[402949641,1769010650974,-166.29296141,0.000194,2]
[402949642,1769010650983,-2351.0,0.00019412,2]
[402949643,1769010650992,-285.18,0.00019472,2]
[402949644,1769010651002,-41613.90850058,0.000195,2]
[402949645,1769010651013,-334.5472959,0.00019585,2]
[402949646,1769010651022,-189.0,0.00019589,2]
[402949647,1769010651032,-511.0,0.000196,2]
[402949648,1769010651042,-407.02797129,0.00019635,2]
[402949649,1769010651051,-232.14598981,0.00019679,2]
[402949650,1769010651062,-238.78,0.00019682,2]
[402949651,1769010651072,-69521.6086708,0.00019689,2]
[402949652,1769010651137,-917.6046059,0.00019689,2]
[402949653,1769010651267,-6113.43184093,0.00016485,2]
[402949654,1769010651278,-2774.59407074,0.00016485,2]
[402949655,1769010651287,-13697.91025847,0.00019689,2]
[402949656,1769010658832,1000.0,9.794e-05,2]
[402949657,1769010658918,1000.0,0.00010785,2]
[402949658,1769010693109,706.81,0.00015761,2]
[402949659,1769010693132,1872.166,0.00015761,2]
[402949660,1769010693161,314.017,0.00015761,2]
[402949661,1769010754349,-250.0,0.00016082,2]
[402949662,1769010754378,-195.0,0.00016082,2]
[402949663,1769010754412,-500.0,0.00016082,2]
[402949664,1769010754445,-500.0,0.00016082,2]
[402949665,1769010754478,-500.0,0.00016082,2]
[402949666,1769010754512,-500.0,0.00016082,2]
[402949667,1769010754544,-500.0,0.00016082,2]
[402949668,1769010754577,-500.0,0.00016082,2]
[402949669,1769010754610,-500.0,0.00016082,2]
[402949670,1769010754643,-500.0,0.00016082,2]
[402949671,1769010754676,-500.0,0.00016082,2]
[402949672,1769010755196,-500.0,0.00016082,2]
[402949673,1769010755229,-500.0,0.00016082,2]
[402949674,1769010755262,-500.0,0.00016082,2]
[402949675,1769010755296,-500.0,0.00016082,2]
[402949676,1769010755329,-500.0,0.00016082,2]
[402949677,1769010755361,-500.0,0.00016082,2]
[402949678,1769010755395,-500.0,0.00016082,2]
[402949679,1769010755428,-500.0,0.00016082,2]
[402949680,1769010755461,-500.0,0.00016082,2]
[402949681,1769010755495,-500.0,0.00016082,2]
[402949682,1769010755585,-400.0,0.00016082,2]
[402949683,1769010775547,236.9366,0.00015983,2]
[402949684,1769010781838,300.0,0.00016082,2]
[402949685,1769010783839,500.0,0.00016082,2]
[402949686,1769010783878,383.22830048,0.00016082,2]
[402949687,1769010783923,500.0,0.00016082,2]
[402949688,1769010783973,500.0,0.00016082,2]
[402949689,1769010784019,500.0,0.00016082,2]
[402949690,1769010784097,500.0,0.00016082,2]
[402949691,1769010784136,500.0,0.00016082,2]
[402949692,1769010784256,500.0,0.00016082,2]
[402949693,1769010784319,500.0,0.00016082,2]
[402949694,1769010784383,500.0,0.00016082,2]
[402949695,1769010793912,500.0,0.00015981,2]
[402949696,1769010836542,310.58730005,0.00016082,2]
[402949697,1769010841303,300.0,0.00016082,2]
[402949698,1769010843818,402.0,0.00016082,2]
[402949699,1769010901258,300.0,0.00016082,2]
[402949700,1769010901288,1200.0,0.00016082,2]
[402949701,1769010961252,300.0,0.00016082,2]
[402949702,1769010986606,5000.0,0.00015,2]
[402949703,1769011004732,1687.42269995,0.00015983,2]
[402949704,1769011004755,310.33360005,0.00015983,2]
[402949705,1769011014202,9689.67639995,0.000155,2]
[402949706,1769011014226,10000.01,0.000155,2]
[402949707,1769011014251,10000.01,0.000155,2]
[402949708,1769011014275,310.30360005,0.000155,2]
[402949709,1769011035631,500.0,0.00016073,2]
[402949710,1769011036477,500.0,0.00016073,2]
[402949711,1769011036866,500.0,0.00016073,2]
[402949712,1769011037475,500.0,0.00016073,2]
[402949713,1769011038077,500.0,0.00016073,2]
[402949714,1769011038143,7189.70639995,0.00016,2]
[402949715,1769011038169,10000.01,0.00016,2]
[402949716,1769011038197,10000.01,0.00016,2]
[402949717,1769011038224,10000.01,0.00016,2]
[402949718,1769011038249,10000.01,0.00016,2]
[402949719,1769011038272,2810.25360005,0.00016,2]
[402949720,1769011038737,520.74832924,0.00016073,2]
[402949722,1769011056031,-176.1061532,0.00016083,2]
[402949723,1769011058095,-264.68883059,0.00016083,2]
[402949726,1769011081243,300.0,0.00016082,2]
[402949727,1769011083092,9700.01,0.000155,2]
[402949728,1769011083117,4299.99,0.000155,2]
[402949729,1769011083789,-154.04044272,0.00016083,2]
[402949731,1769011107243,317.242118,0.00016002,2]
[402949733,1769011130244,5382.777882,0.00013688,2]
[402949734,1769011130268,1519.842118,0.00013688,2]
[402949735,1769011136317,6222.21120235,0.00016032,2]
[402949736,1769011139828,208.19814596,0.00016032,2]
[402949737,1769011153902,2049.75853369,0.00015983,2]
[402949738,1769011153925,450.24146631,0.00015983,2]
[402949739,1769011154887,630.0,0.000158,2]
[402949740,1769011176766,451.30102214,0.00016064,2]
[402949741,1769011201261,1200.0,0.00016082,2]
[402949742,1769011220870,500.0,0.00015983,2]
[402949743,1769011269935,2282.2358,0.00015983,2]
[402949744,1769011270757,151.0,0.00016083,2]
[402949745,1769011276593,4335.23171155,0.00015983,2]
[402949746,1769011276616,10000.01,0.00015983,2]
[402949747,1769011276639,9568.09848845,0.00015983,2]
[402949748,1769011293338,431.91151155,0.00015761,2]
[402949749,1769011293363,1631.26848845,0.00015761,2]
[402949750,1769011293435,251.213,0.00015761,2]
[402949751,1769011311588,500.0,0.00016082,2]
[402949752,1769011321686,300.0,0.00016082,2]
[402949753,1769011331253,200.0,0.00016083,2]
[402949754,1769011351593,1569.4315,0.00015983,2]
[402949755,1769011353201,151.0,0.00016083,2]
[402949756,1769011354033,151.0,0.00016083,2]
[402949757,1769011354551,151.0,0.00016083,2]
[402949758,1769011355014,151.0,0.00016083,2]
[402949759,1769011355846,151.0,0.00016083,2]
[402949760,1769011356262,196.78678975,0.00016083,2]
[402949761,1769011372071,500.0,0.00015983,2]
[402949762,1769011373564,500.0,0.00016083,2]
[402949763,1769011381435,300.0,0.00016082,2]
[402949764,1769011382796,550.0,0.00016082,2]
[402949765,1769011384110,2746.3102218,0.00015983,2]
[402949766,1769011384134,1358.9872782,0.00015983,2]
[402949767,1769011441380,300.0,0.00016082,2]
[402949768,1769011445422,352.7249051,0.00016083,2]
[402949769,1769011501738,1200.0,0.00016082,2]
[402949770,1769011561597,300.0,0.00016082,2]
[402949771,1769011572427,151.0,0.00016083,2]
[402949772,1769011578834,500.0,0.00016082,2]
[402949773,1769011578903,500.0,0.00016082,2]
[402949774,1769011578992,500.0,0.00016082,2]
[402949775,1769011579054,500.0,0.00016082,2]
[402949776,1769011579170,500.0,0.00016082,2]
[402949777,1769011579232,431.70419553,0.00016082,2]
[402949778,1769011579319,500.0,0.00016082,2]
[402949780,1769011629155,200.0,0.00016073,2]
[402949781,1769011649043,2705.59362117,0.00016083,2]
[402949782,1769011649068,2894.39646099,0.00016083,2]
[402949784,1769011698676,7105.61353901,0.00015983,2]
[402949785,1769011698703,10000.01,0.00015983,2]
[402949786,1769011698730,10000.01,0.00015983,2]
[402949787,1769011698756,10000.01,0.00015983,2]
[402949788,1769011698783,10000.01,0.00015983,2]
[402949789,1769011698811,10000.01,0.00015983,2]
[402949790,1769011698840,10000.01,0.00015983,2]
[402949791,1769011698869,10000.01,0.00015983,2]
[402949792,1769011698896,10000.01,0.00015983,2]
[402949793,1769011698926,10000.01,0.00015983,2]
[402949794,1769011698961,9008.817,0.00015983,2]
[402949795,1769011699601,-392.28031827,0.00015983,2]
[402949796,1769011703289,-274.76701349,0.00015983,2]
[402949797,1769011709643,-446.21963096,0.00015983,2]
[402949798,1769011712227,-276.73764997,0.00015983,2]
[402949799,1769011713885,-165.94860901,0.00015983,2]
[402949800,1769011720883,-198.74580285,0.00015983,2]
[402949801,1769011722026,-1248.84317023,0.00015983,2]
[402949802,1769011722204,-10000.01,0.00015983,2]
[402949803,1769011722364,-10000.01,0.00015983,2]
[402949804,1769011722407,-215.70872266,0.00015983,2]
[402949805,1769011722984,-10000.01,0.00015983,2]
[402949806,1769011723020,-10000.01,0.00015983,2]
[402949807,1769011724595,-10000.01,0.00015983,2]
[402949808,1769011725208,-10000.01,0.00015983,2]
[402949809,1769011725334,-217.45216286,0.00015983,2]
[402949810,1769011725387,-10000.01,0.00015983,2]
[402949811,1769011725455,-10000.01,0.00015983,2]
[402949812,1769011726738,-260.29062073,0.00015983,2]
[402949813,1769011730118,-348.17,0.00015983,2]
[402949814,1769011730774,-10000.01,0.00015983,2]
[402949816,1769011734070,-10000.01,0.00015983,2]
[402949817,1769011734340,-10000.01,0.00015983,2]
[402949818,1769011734533,-10000.01,0.00015983,2]
[402949819,1769011734580,-10000.01,0.00015983,2]
[402949820,1769011735062,-10000.01,0.00015983,2]
[402949821,1769011735088,-10000.01,0.00015983,2]
[402949822,1769011735206,-10000.01,0.00015983,2]
[402949823,1769011735400,-154.53466593,0.00015983,2]
[402949824,1769011736879,-10000.01,0.00015983,2]
[402949825,1769011737458,-10000.01,0.00015983,2]
[402949826,1769011738031,-389.12293948,0.00015983,2]
[402949827,1769011742088,-244.40126019,0.00015983,2]
[402949828,1769011743182,-10000.01,0.00015983,2]
[402949829,1769011743448,-10000.01,0.00015983,2]
[402949830,1769011743625,-10000.01,0.00015983,2]
[402949831,1769011743876,-10000.01,0.00015983,2]
[402949832,1769011744132,-10000.01,0.00015983,2]
[402949833,1769011744164,-192.35570445,0.00015983,2]
[402949834,1769011745720,-328.01806371,0.00015983,2]
[402949835,1769011746082,-10000.01,0.00015983,2]
[402949836,1769011746216,-10000.01,0.00015983,2]
[402949837,1769011749670,-10000.01,0.00015983,2]
[402949838,1769011749767,-10000.01,0.00015983,2]
[402949839,1769011749908,-10000.01,0.00015983,2]
[402949840,1769011749946,-177.57814651,0.00015983,2]
[402949841,1769011750056,-10000.01,0.00015983,2]
[402949842,1769011750186,-10000.01,0.00015983,2]
[402949843,1769011751789,-171.33430869,0.00015983,2]
[402949844,1769011753104,-196.48106986,0.00015983,2]
[402949845,1769011755236,-10000.01,0.00015983,2]
[402949846,1769011755421,-10000.01,0.00015983,2]
[402949847,1769011755714,-10000.01,0.00015983,2]
[402949848,1769011755866,-10000.01,0.00015983,2]
[402949849,1769011757436,-254.51503636,0.00015983,2]
[402949850,1769011760244,-289.0,0.00015983,2]
[402949851,1769011764571,-500.0,0.00015982,2]
[402949852,1769011764605,-436.85602172,0.00015982,2]
[402949853,1769011764693,-8126.29795656,0.00015983,2]
[402949854,1769011765214,-10000.01,0.00015983,2]
[402949855,1769011767129,164.968212,0.0001507,2]
[402949856,1769011772042,-162.71146068,0.00015983,2]
[402949857,1769011772990,-10000.01,0.00015983,2]
[402949858,1769011773517,-10000.01,0.00015983,2]
[402949860,1769011801189,300.0,0.00015982,2]
[402949861,1769011801225,1200.0,0.00015982,2]
[402949862,1769011807653,8500.01,7.945e-05,2]
[402949863,1769011807697,2406.41183,7.945e-05,2]
[402949890,1769011831980,-2241.65903586,0.00015983,2]
[402949892,1769011831993,-40609.5330671,0.00015983,2]
[402949899,1769011832374,-42510.7815,0.00015983,2]
[402949908,1769011832451,-901.12,0.00015983,2]
[402949919,1769011832547,-271.90586894,0.00015983,2]
[402949942,1769011838007,-1203.72493387,0.00015983,2]
[402949943,1769011838019,-1257.52650424,0.00015983,2]
[402949944,1769011838204,-353.97119535,0.00015983,2]
[402949955,1769011838635,-509.15197603,0.00015983,2]
[402949956,1769011838646,-4209.78714125,0.00015983,2]
[402949957,1769011838657,-1305.49398673,0.00015983,2]
[402949962,1769011840387,-1.7e-07,0.00015983,2]
[402949963,1769011840475,-15030.49999999,0.00015983,2]
[402950008,1769011843200,-88080.18710039,0.00015983,2]
[402950032,1769011846507,-259.68000002,0.00015983,2]
[402950034,1769011846669,-1022.15825539,0.00015983,2]
[402950035,1769011846681,-1987.86,0.00015983,2]
[402950036,1769011846692,-2245.55,0.00015983,2]
[402950037,1769011846703,-410.83896305,0.00015983,2]
[402950038,1769011861293,300.0,0.00015982,2]
[402950039,1769011948768,-304742.16561916,0.00015983,2]
[402950040,1769011948791,-500.0,0.00015983,2]
[402950041,1769011948815,-3473.4287,0.00015983,2]
[402950042,1769011955231,341.0058,0.00015883,2]
[402950043,1769011977700,1000000.0,0.00015883,2]
[402950044,1769011992558,1000.0,0.00015883,2]
[402950045,1769012034061,-299.99,0.00016389,4]
[402950046,1769012070532,-831.01,0.000169,5]
[402950047,1769012074526,-500.0,0.00016036,2]
[402950048,1769012074555,-288.66632889,0.00016052,2]
[402950049,1769012074584,-1000.0,0.00016067,2]
[402950050,1769012074613,-234.04112718,0.00016082,2]
[402950051,1769012074641,-151.0,0.00016083,2]
[402950052,1769012074671,-151.0,0.00016083,2]
[402950053,1769012074700,-1353.23,0.00016098,2]
[402950054,1769012074735,-150.00559319,0.00016206,2]
[402950055,1769012075768,-2406.53,0.0001623,2]
[402950056,1769012075799,-300.0,0.00016281,2]
[402950057,1769012075830,-500.0,0.00016282,2]
[402950058,1769012075860,-500.0,0.00016282,2]
[402950059,1769012075891,-514.94793868,0.00016282,2]
[402950060,1769012075921,-500.0,0.00016282,2]
[402950061,1769012075953,-57.05412264,0.00016282,2]
[402950062,1769012076467,-442.94587736,0.00016282,2]
[402950063,1769012076498,-500.0,0.00016282,2]
[402950064,1769012076528,-500.0,0.00016282,2]
[402950065,1769012076559,-499.99,0.00016282,2]
[402950066,1769012076587,-1536.72,0.00016282,2]
[402950067,1769012076615,-150.99,0.00016282,2]
[402950068,1769012076642,-150.99,0.00016282,2]
[402950069,1769012076671,-999.99,0.00016282,2]
[402950070,1769012077978,-524.35471341,0.00016282,2]
[402950071,1769012078331,-10000.01,0.00016282,2]
[402950072,1769012078360,-10000.01,0.00016282,2]
[402950073,1769012078416,-10000.01,0.00016282,2]
[402950074,1769012078476,-160.23528659,0.00016282,2]
[402950075,1769012078486,-1723.06,0.00016282,2]
[402950076,1769012078495,-5138.15,0.00016351,2]
[402950077,1769012078507,-2538.16,0.00016351,2]
[402950078,1769012078516,-206.45,0.00016389,2]
[402950079,1769012078526,-233.95471341,0.00016389,2]
[402950080,1769012078715,-233.97471341,0.00016389,2]
[402950081,1769012078740,-9532.06057318,0.00016389,2]
[402950082,1769012079794,182.47,0.00013106,2]
[402950083,1769012080012,182.47,0.00014417,2]
[402950084,1769012080235,182.47,0.00015728,2]
[402950085,1769012080528,-0.02,0.00016389,2]
[402950086,1769012080553,-9999.97,0.00016389,2]
[402950087,1769012081266,-348.38,0.00016389,2]
[402950088,1769012081408,-9303.25,0.00016389,2]
[402950089,1769012086879,-696.74,0.00016389,2]
[402950090,1769012087020,-8606.53,0.00016389,2]
[402950091,1769012087141,-1393.46,0.00016389,2]
[402950092,1769012087233,-0.02,0.00016389,2]
[402950093,1769012087318,-7213.07,0.00016389,2]
[402950094,1769012087376,-2786.9,0.00016389,2]
[402950095,1769012101051,6797.2884632,0.00015983,2]
[402950096,1769012104955,500.0,0.00015936,2]
[402950097,1769012156543,500.0,0.00016082,2]
[402950098,1769012156777,500.0,0.00016082,2]
[402950099,1769012157054,500.0,0.00016082,2]
[402950100,1769012157487,501.59915555,0.00016082,2]
[402950101,1769012185816,701.12238125,0.0001627,2]
[402950102,1769012185841,2855.84761875,0.0001627,2]
[402950103,1769012320439,150.67,0.00016067,2]
[402950104,1769012353755,4702.0,0.000161,5]
[402950105,1769012360298,2291.49238125,0.00016072,2]
[402950106,1769012360324,10000.01,0.00016072,2]
[402950107,1769012360352,10000.01,0.00016072,2]
[402950108,1769012360376,10000.01,0.00016072,2]
[402950109,1769012360400,10000.01,0.00016072,2]
[402950110,1769012360424,10000.01,0.00016072,2]
[402950111,1769012360448,10000.01,0.00016072,2]
[402950112,1769012360471,10000.01,0.00016072,2]
[402950113,1769012360494,10000.01,0.00016072,2]
[402950114,1769012360517,10000.01,0.00016072,2]
[402950115,1769012384274,-10000.01,0.00016072,2]
[402950116,1769012384506,-10000.01,0.00016072,2]
[402950117,1769012384841,-10000.01,0.00016072,2]
[402950118,1769012385200,-10000.01,0.00016072,2]
[402950119,1769012385853,-10000.01,0.00016072,2]
[402950120,1769012385933,-10000.01,0.00016072,2]
[402950121,1769012386253,-10000.01,0.00016072,2]
[402950122,1769012389546,-10000.01,0.00016072,2]
[402950123,1769012390321,-10000.01,0.00016072,2]
[402950124,1769012390514,-10000.01,0.00016072,2]
[402950125,1769012392957,-10000.01,0.00016072,2]
[402950126,1769012394219,-10000.01,0.00016072,2]
[402950127,1769012394281,-10000.01,0.00016072,2]
[402950128,1769012395739,-10000.01,0.00016072,2]
[402950129,1769012395878,-10000.01,0.00016072,2]
[402950130,1769012396488,-10000.01,0.00016072,2]
[402950131,1769012398753,-10000.01,0.00016072,2]
[402950132,1769012398982,-10000.01,0.00016072,2]
[402950133,1769012399193,-10000.01,0.00016072,2]
[402950134,1769012402007,-1200.0,0.00016071,2]
[402950135,1769012402044,-300.0,0.00016071,2]
[402950136,1769012402079,-300.0,0.00016071,2]
[402950137,1769012402115,-300.0,0.00016071,2]
[402950138,1769012402266,-5800.01,0.00016072,2]
[402950139,1769012402410,-10000.01,0.00016072,2]
[402950140,1769012402530,-10000.01,0.00016072,2]
[402950141,1769012405129,-10000.01,0.00016072,2]
[402950142,1769012405178,-10000.01,0.00016072,2]
[402950143,1769012405275,-10000.01,0.00016072,2]
[402950144,1769012408475,-10000.01,0.00016072,2]
[402950145,1769012408553,-10000.01,0.00016072,2]
[402950146,1769012408683,-10000.01,0.00016072,2]
[402950147,1769012411264,-10000.01,0.00016072,2]
[402950148,1769012411819,-10000.01,0.00016072,2]
[402950149,1769012411986,-10000.01,0.00016072,2]
[402950150,1769012416153,-10000.01,0.00016072,2]
[402950151,1769012420757,-10000.01,0.00016072,2]
[402950152,1769012421302,-10000.01,0.00016072,2]
[402950153,1769012422431,-10000.01,0.00016072,2]
[402950154,1769012422552,-10000.01,0.00016072,2]
[402950155,1769012422749,-10000.01,0.00016072,2]
[402950156,1769012426731,-10000.01,0.00016072,2]
[402950157,1769012432529,-10000.01,0.00016072,2]
[402950158,1769012433176,-10000.01,0.00016072,2]
[402950159,1769012437001,-10000.01,0.00016072,2]
[402950160,1769012493977,1852.42,0.00015644,2]
[402950162,1769012623287,352.72490511,0.00015972,2]
[402950163,1769012677550,7821.17128072,0.00015982,2]
[402950164,1769012736902,3090.7751,0.00015972,2]
[402950165,1769012741311,2490.11,0.00015574,2]
[402950167,1769012829745,1068.86,0.00015536,2]
[402950169,1769012858098,166.66,0.00014767,2]
[402950170,1769012858320,166.66,0.00015078,2]
[402950171,1769012858677,166.66,0.00015389,2]
[402950172,1769012858921,166.66,0.000157,2]
[402950173,1769012913224,18119.91423881,0.00016,4]
[402950175,1769012935841,-166.66,0.00016011,2]
[402950176,1769012935872,-195.0,0.00016036,2]
[402950177,1769012935909,-1200.0,0.00016061,2]
[402950178,1769012935942,-300.0,0.00016061,2]
[402950179,1769012935974,-250.0,0.00016062,2]
[402950180,1769012936026,170.21,0.00015918,2]
[402950181,1769012941584,300.0,0.00016061,2]
[402950182,1769012976713,5000.0,0.000159,2]
[402950183,1769013021217,2000.0,0.000159,2]
[402950203,1769013032408,-299.06715887,0.00016061,2]
[402950204,1769013032478,-900.93284113,0.00016061,2]
[402950205,1769013032487,-600.0,0.00016062,2]
[402950206,1769013032497,-292.36869297,0.00016062,2]
[402950207,1769013032507,-768.02304485,0.00016062,2]
[402950208,1769013032518,-8876.59274545,0.00016062,2]
[402950209,1769013032533,-8903.85237878,0.00016062,2]
[402950210,1769013032545,-250.0,0.00016067,2]
[402950211,1769013032554,-550.0,0.00016071,2]
[402950213,1769013032564,-8203.98501995,0.00016072,2]
[402950214,1769013032609,-865.0,0.00016072,2]
[402950220,1769013038400,1000.0,0.000159,2]